bitfinex-derivatives/quotes_ETHF0:USTF0_20250602
["timestamp","ask_amount","ask_price","bid_price","bid_amount"]
[1748883735750,3.99187,2549.6,2549.5,0.7841]
[1748883736443,3.2078,2549.6,2549.5,0.7841]
[1748883736848,0.78406,2549.7,2549.6,0.78407]
[1748883737545,0.00588305,2549.8,2549.7,0.78404]
[1748883737858,0.00588305,2549.8,2549.6,0.78405]
[1748883738347,1.35908305,2549.8,2549.5,0.78408]
[1748883738548,1.35908305,2549.8,2549.5,0.78409]
[1748883738854,2.14310305,2549.8,2549.6,0.78407]
[1748883739057,0.78404,2549.7,2549.3,1.34888151]
[1748883739364,0.78413,2549.4,2549.3,1.34888151]
[1748883739543,0.78413,2549.4,2549.3,0.00398151]
[1748883739949,2.58579,2549.5,2548.5,1.96103]
[1748883740150,3.2078,2549.0,2548.9,0.78429]
[1748883740748,3.28438094,2549.8,2549.7,0.78404]
[1748883740951,3.28438094,2549.8,2549.2,1.96047]
[1748883740952,4.06840094,2549.8,2549.6,0.78406]
[1748883741159,3.28438094,2549.8,2549.6,0.78407]
[1748883741454,3.28438094,2549.8,2549.7,0.78404]
[1748883742147,0.07658094,2549.8,2549.7,0.78404]
[1748883744752,0.07658094,2549.8,2549.7,5.78404]
[1748883745053,0.5873,2550.5,2550.4,0.78382]
[1748883748264,0.5873,2550.5,2550.4,2.05092]
[1748883751267,0.5873,2550.5,2550.4,7.05092]
[1748883751466,3.05e-06,2550.7,2550.6,0.78376]
[1748883751661,3.2078,2551.2,2551.1,0.78361]
[1748883751863,3.2078,2551.4,2551.3,0.78355]
[1748883752265,3.10922868,2551.6,2551.5,0.78349]
[1748883752664,3.10922868,2551.7,2551.4,1.2749]
[1748883752871,0.78342,2551.7,2551.6,0.78345]
[1748883753068,3.99122,2551.7,2551.6,0.78345]
[1748883753766,3.2078,2551.7,2551.6,0.78345]
[1748883754168,3.99122,2551.7,2551.6,0.78345]
[1748883754371,3.2078,2551.7,2551.6,0.78345]
[1748883754771,3.27849789,2551.7,2551.6,0.78345]
[1748883755370,4.06191789,2551.7,2551.6,0.78345]
[1748883755575,6.38958578,2551.7,2551.6,0.78345]
[1748883755781,7.17303578,2551.7,2551.6,0.78346]
[1748883756077,6.38958578,2551.7,2551.6,0.78346]
[1748883756372,3.27849789,2551.7,2551.4,1.2749]
[1748883756564,3.27849789,2551.7,2551.6,0.78346]
[1748883756965,0.07069789,2551.7,2551.6,0.78346]
[1748883757475,7.89e-06,2551.7,2551.6,2.05316]
[1748883758068,7.89e-06,2551.7,2551.6,7.05316]
[1748883758768,3.89290091,2552.4,2551.6,6.2697]
[1748883758969,0.07069789,2551.7,2551.6,2.05316]
[1748883759175,0.07069789,2551.7,2551.6,5.26096]
[1748883759382,0.07069789,2551.7,2551.6,10.26096]
[1748883759875,0.07069789,2551.7,2551.6,5.26096]
[1748883760070,0.07069789,2551.7,2551.6,2.05316]
[1748883762767,0.07069789,2551.7,2551.4,0.00588305]
[1748883762768,3.27849789,2551.7,2551.4,0.00588305]
[1748883762966,0.78349,2551.5,2551.4,0.00588305]
[1748883763369,3.89318091,2551.5,2551.4,0.00588305]
[1748883763572,8.89318091,2551.5,2551.4,0.00588305]
[1748883763770,0.78357,2551.3,2551.1,0.78361]
[1748883763967,10.06843091,2551.5,2551.2,0.78356]
[1748883763968,1.3146,2551.4,2551.2,0.78356]
[1748883764168,1.3146,2551.4,2550.8,3.22373]
[1748883764169,2.09813,2551.4,2550.9,1.95917]
[1748883764367,2.09813,2551.4,2551.2,0.78355]
[1748883764577,1.3146,2551.4,2551.3,0.78355]
[1748883764779,6.31749091,2551.5,2551.4,0.78352]
[1748883765576,3.2078,2551.5,2551.4,0.78352]
[1748883767375,0.07069789,2551.7,2551.6,0.78346]
[1748883770279,0.78348,2551.6,2551.5,0.78346]
[1748883770480,0.07069789,2551.7,2551.6,0.78346]
[1748883771076,0.07069789,2551.7,2551.0,1.96498305]
[1748883771277,0.78361,2551.1,2551.0,0.00588305]
[1748883771474,6.42689,2551.6,2551.1,0.78358]
[1748883771475,3.2078,2551.2,2551.1,0.78358]
[1748883771673,5.1314,2551.6,2551.1,1.95896]
[1748883771888,3.11027844,2551.4,2551.3,0.78355]
[1748883772082,3.11027844,2551.4,2551.2,2.01376]
[1748883772386,3.2078,2551.3,2551.2,0.78358]
[1748883772687,7.57847844,2551.3,2551.2,0.78358]
[1748883772878,8.36204844,2551.3,2551.2,0.78358]
[1748883773078,7.57847844,2551.3,2551.2,0.78358]
[1748883773681,4.4682,2551.3,2551.2,0.78358]
[1748883774788,4.4682,2551.3,2551.0,0.00588305]
[1748883774985,0.78361,2551.1,2551.0,0.00588305]
[1748883775191,3.90108227,2551.1,2551.0,0.00588305]
[1748883775404,8.90108227,2551.1,2551.0,0.00588305]
[1748883775586,7.05621,2551.1,2551.0,0.00588305]
[1748883776686,0.78378,2550.6,2550.4,2.0873]
[1748883776894,0.78378,2550.6,2550.0,5.83543]
[1748883776895,6.32660333,2550.7,2550.3,0.78384]
[1748883777189,3.2078,2550.4,2550.1,1.3143]
[1748883777389,0.78385,2550.3,2550.2,0.78388]
[1748883777595,3.2078,2550.4,2550.2,0.78388]
[1748883777790,0.78387,2550.3,2550.1,1.3143]
[1748883778093,3.2078,2550.4,2550.3,0.78385]
[1748883778297,3.2078,2550.4,2550.1,1.3143]
[1748883778298,3.99165,2550.4,2550.1,1.3143]
[1748883778602,3.99164,2550.4,2550.3,0.78385]
[1748883779595,3.99164,2550.4,2550.2,0.78387]
[1748883779596,3.2078,2550.4,2550.2,0.78387]
[1748883779784,3.99165,2550.4,2550.2,0.78387]
[1748883779986,0.00588305,2550.5,2550.4,0.78382]
[1748883780484,3.05e-06,2550.5,2550.4,5.78382]
[1748883780682,3.05e-06,2550.5,2550.4,8.36632]
[1748883781285,0.78355,2551.3,2550.6,3.91879]
[1748883781494,0.78355,2551.3,2551.2,0.78357]
[1748883781797,3.2078,2551.3,2551.2,0.78357]
[1748883783188,3.2078,2551.3,2551.2,2.13167]
[1748883784998,3.2078,2551.3,2551.2,0.78357]
[1748883785301,3.27849789,2551.3,2551.2,0.78357]
[1748883786796,3.27849789,2551.3,2550.6,3.2078]
[1748883786994,0.78373,2550.8,2550.7,0.7837]
[1748883787191,5.16692,2551.0,2550.1,3.2078]
[1748883787192,0.78375,2550.7,2550.6,0.78372]
[1748883787392,0.78388,2550.3,2550.2,0.78385]
[1748883787592,0.78388,2550.3,2550.2,0.78387]
[1748883787889,3.2078,2550.4,2550.3,0.78385]
[1748883788096,3.99162,2550.4,2550.3,0.78385]
[1748883788494,3.2078,2550.4,2550.3,0.78385]
[1748883789393,3.99162,2550.4,2550.3,0.78385]
[1748883789698,3.2078,2550.4,2550.3,0.78385]
[1748883789898,3.99162,2550.4,2550.3,0.78385]
[1748883790201,3.2078,2550.4,2550.3,0.78385]
[1748883791197,3.11880333,2550.7,2550.6,0.78376]
[1748883791494,8.90247333,2550.9,2550.5,1.95947]
[1748883791799,3.90247333,2550.9,2550.8,0.7837]
[1748883791989,3.11880333,2550.9,2550.8,0.7837]
[1748883793304,3.90247333,2550.9,2550.8,0.7837]
[1748883793501,5.24417333,2550.9,2550.8,0.7837]
[1748883793705,0.78375,2550.7,2550.6,0.78375]
[1748883793905,0.78375,2550.7,2550.4,0.7838]
[1748883793906,0.78377,2550.6,2550.4,0.7838]
[1748883794200,2.12547,2550.6,2550.5,0.78379]
[1748883794399,1.3417,2550.6,2550.2,1.2664]
[1748883794798,1.3417,2550.6,2550.3,0.78383]
[1748883794799,3.2078,2550.4,2550.3,0.78383]
[1748883795099,3.99163,2550.4,2550.3,0.78384]
[1748883795298,5.25773,2550.4,2550.3,0.78384]
[1748883795801,4.4739,2550.4,2550.3,0.78384]
[1748883796198,3.11885346,2550.5,2550.4,0.78382]
[1748883796898,3.90264346,2550.5,2550.4,0.78382]
[1748883797105,7.59275346,2550.5,2550.2,1.2854]
[1748883797305,7.59275346,2550.5,2550.0,1.96574305]
[1748883797604,8.37656346,2550.5,2550.4,0.78382]
[1748883797803,0.78384,2550.4,2550.3,0.78384]
[1748883798005,2.06994,2550.4,2550.3,0.78384]
[1748883798206,1.2861,2550.4,2550.1,1.3406]
[1748883798500,0.78392,2550.1,2550.0,0.00588305]
[1748883798701,0.7841,2549.5,2548.8,3.24757]
[1748883798905,3.2078,2549.3,2549.2,0.78419]
[1748883801105,3.2078,2549.3,2549.1,0.7842]
[1748883801307,0.78422,2549.1,2549.0,0.00588305]
[1748883801697,2.7679,2549.2,2549.0,0.00588305]
[1748883801905,1.9837,2549.2,2549.1,0.78422]
[1748883802107,6.32665346,2549.3,2549.2,0.78419]
[1748883802310,3.2078,2549.3,2549.2,0.78419]
[1748883803210,3.2078,2549.3,2549.0,0.00588305]
[1748883803407,3.2078,2549.3,2549.2,0.78419]
[1748883805101,0.00588305,2549.5,2549.4,0.78413]
[1748883805314,0.00588305,2549.5,2549.4,3.99193]
[1748883805616,0.00588305,2549.5,2549.4,8.99193]
[1748883806912,0.00588305,2549.5,2549.4,3.99193]
[1748883811812,0.59418305,2549.5,2549.4,3.99193]
[1748883813414,0.59418305,2549.5,2549.4,0.78413]
[1748883814413,0.59418305,2549.5,2549.3,1.2999]
[1748883814414,3.80198305,2549.5,2549.3,1.2999]
[1748883814716,0.78416,2549.4,2549.3,0.78413]
[1748883814917,0.78421,2549.3,2549.2,0.78417]
[1748883815418,0.78422,2549.2,2549.1,0.7842]
[1748883816004,1.44458,2549.3,2549.2,0.78419]
[1748883816217,2.76748,2549.3,2549.2,0.78419]
[1748883816624,1.9833,2549.3,2549.2,0.78419]
[1748883816922,2.99997404,2549.3,2549.2,0.78419]
[1748883817123,2.33957404,2549.3,2549.2,0.78419]
[1748883817321,2.33957404,2549.4,2549.3,0.78416]
[1748883818913,0.66488094,2549.5,2549.4,0.78413]
[1748883821318,0.66488094,2549.5,2549.4,3.99193]
[1748883822420,3.77205346,2550.1,2549.7,1.96007]
[1748883822620,2.34168519,2549.8,2549.7,3.99184]
[1748883823319,4.55597346,2550.1,2550.0,0.78395]
[1748883824023,1.95987,2550.0,2549.5,0.6583]
[1748883824219,0.78413,2549.5,2549.4,0.78409]
[1748883824620,3.2078,2549.6,2549.5,0.7841]
[1748883824819,3.9081008,2549.7,2549.6,0.78407]
[1748883825020,5.1928008,2549.7,2549.6,0.78407]
[1748883825325,2.06876,2549.7,2549.6,0.78407]
[1748883826025,1.2847,2549.7,2549.6,0.78407]
[1748883826414,1.2847,2549.7,2549.0,3.92702305]
[1748883826415,1.96018,2549.6,2549.0,0.00588305]
[1748883826621,3.2078,2549.3,2549.2,0.78416]
[1748883826823,3.1240408,2549.4,2549.3,0.78416]
[1748883827221,3.1240408,2549.4,2549.0,1.96650305]
[1748883827222,6.3318408,2549.4,2549.0,1.96650305]
[1748883827421,6.3318408,2549.4,2549.1,0.7842]
[1748883827422,0.78421,2549.2,2549.1,0.7842]
[1748883827816,1.3519,2549.2,2549.1,0.7842]
[1748883829426,2.13609,2549.2,2549.1,0.7842]
[1748883829625,1.3519,2549.2,2549.1,0.7842]
[1748883830827,3.1240408,2549.3,2549.2,0.78419]
[1748883831124,0.6788,2549.4,2549.3,0.78416]
[1748883831329,7.82050358,2549.7,2549.5,0.7841]
[1748883831330,3.1240408,2549.6,2549.5,0.7841]
[1748883831626,3.2078,2549.7,2549.6,0.78407]
[1748883831627,6.3318408,2549.7,2549.6,0.78407]
[1748883831815,3.2078,2549.7,2549.6,0.78407]
[1748883832324,3.2078,2549.7,2549.4,3.1895]
[1748883832325,0.7841,2549.6,2549.5,0.78408]
[1748883832629,8.4095008,2549.7,2549.6,0.78407]
[1748883832825,0.78411,2549.6,2549.5,0.78408]
[1748883833022,1.2936,2549.6,2549.5,0.78408]
[1748883833223,6.3318408,2549.7,2549.6,0.78407]
[1748883833423,7.1159008,2549.7,2549.6,0.78407]
[1748883833621,8.4095008,2549.7,2549.6,0.78407]
[1748883834330,7.6254408,2549.7,2549.6,0.78407]
[1748883835436,4.5014,2549.7,2549.6,0.78407]
[1748883837129,5.28544,2549.7,2549.6,0.78407]
[1748883837325,4.5014,2549.7,2549.6,0.78407]
[1748883837627,3.13003545,2549.7,2549.6,0.78407]
[1748883838216,3.13003545,2549.7,2549.6,2.12127]
[1748883840530,3.13003545,2549.8,2549.7,0.78404]
[1748883840723,3.13003545,2549.9,2549.8,0.78401]
[1748883840924,3.13003545,2550.0,2549.9,0.78398]
[1748883841327,3.91397545,2550.0,2549.9,0.78398]
[1748883841727,3.13003545,2550.0,2549.9,0.78398]
[1748883842132,3.13003545,2550.0,2549.5,3.2078]
[1748883842332,5.2179,2550.2,2549.4,1.9603]
[1748883842333,3.13003545,2549.7,2549.4,1.9603]
[1748883842633,3.99189,2549.6,2549.5,0.7841]
[1748883843126,0.78416,2549.4,2549.3,0.78412]
[1748883843323,0.78418,2549.3,2549.2,0.78417]
[1748883843533,3.99198,2549.3,2549.2,0.78417]
[1748883844230,0.78419,2549.2,2549.1,0.78421]
[1748883844424,3.2005396,2549.2,2549.0,0.79012305]
[1748883844626,0.78422,2549.1,2549.0,0.00588305]
[1748883844927,1.96072,2548.9,2548.0,1.16573894]
[1748883845121,3.2078,2548.3,2547.8,1.3043]
[1748883845332,0.7845,2548.2,2548.0,0.78455]
[1748883845630,3.2078,2548.3,2547.9,0.78459]
[1748883845824,3.99237,2548.0,2547.8,0.00588305]
[1748883846029,3.99237,2548.0,2547.8,0.79050305]
[1748883846530,3.2078,2548.0,2547.8,0.79050305]
[1748883846732,3.99237,2548.0,2547.8,0.79050305]
[1748883847228,3.2078,2548.0,2547.8,0.00588305]
[1748883847435,0.78459,2547.9,2547.8,0.00588305]
[1748883847934,3.2078,2548.0,2547.8,0.00588305]
[1748883848138,1.43389,2547.9,2547.8,0.00588305]
[1748883848339,0.6493,2547.9,2547.8,0.79050305]
[1748883848528,0.6283,2548.2,2548.0,0.78454]
[1748883848730,0.6283,2548.2,2547.9,1.3612]
[1748883848930,3.8571,2548.3,2547.9,1.3612]
[1748883849132,0.00588305,2548.4,2548.3,0.78447]
[1748883849534,0.00588305,2548.4,2548.3,3.99227]
[1748883850034,0.59448305,2548.4,2548.3,3.99227]
[1748883852131,0.59448305,2548.4,2548.3,8.99227]
[1748883852331,0.59448305,2548.4,2548.3,3.99227]
[1748883852934,0.59448305,2548.4,2548.3,0.78447]
[1748883853140,0.59448305,2548.4,2548.1,1.3612]
[1748883853441,0.78459,2547.9,2547.8,0.79050305]
[1748883853742,3.99237,2548.0,2547.9,0.78459]
[1748883854536,3.2078,2548.0,2547.9,0.78459]
[1748883855542,0.78459,2547.9,2547.8,0.79048305]
[1748883855746,3.99238,2548.0,2547.9,0.78459]
[1748883856044,0.78459,2547.9,2547.8,0.79048305]
[1748883856931,0.78459,2547.9,2547.8,0.00588305]
[1748883857136,3.99237,2548.0,2547.9,0.78459]
[1748883857336,0.78459,2547.9,2547.8,0.79049305]
[1748883857742,0.78459,2547.9,2547.8,0.00588305]
[1748883857945,1.45109,2547.9,2547.8,0.00588305]
[1748883859039,6.45109,2547.9,2547.8,0.00588305]
[1748883859347,0.78474,2547.4,2547.3,2.03197]
[1748883859540,3.99254,2547.4,2547.3,2.03197]
[1748883859739,5.1605,2547.7,2547.3,1.2472]
[1748883859935,0.78472,2547.5,2547.4,0.78474]
[1748883860232,5.94515,2547.7,2547.3,1.2472]
[1748883860440,0.6665,2547.9,2547.8,0.78462]
[1748883860634,0.73719789,2547.9,2547.8,0.78462]
[1748883860835,0.07069789,2547.9,2547.8,0.78462]
[1748883861241,6.93263092,2548.4,2548.3,0.78447]
[1748883861441,3.80228305,2548.4,2548.3,0.78447]
[1748883862440,4.58672305,2548.4,2548.3,0.78447]
[1748883862940,3.80228305,2548.4,2547.7,1.96162]
[1748883863141,0.78456,2548.0,2547.9,1.3474]
[1748883863648,0.78462,2547.8,2547.7,0.6257]
[1748883863849,0.78462,2547.8,2547.0,3.2078]
[1748883863850,0.78465,2547.7,2547.6,2.13208]
[1748883864146,0.07069789,2547.9,2547.8,0.78462]
[1748883864542,0.85528789,2547.9,2547.8,0.78462]
[1748883864743,0.78462,2547.8,2547.7,1.3474]
[1748883864940,3.2078,2547.8,2547.1,0.674]
[1748883865149,0.78475,2547.4,2547.3,0.78477]
[1748883865344,0.78467,2547.7,2547.6,0.78467]
[1748883865541,0.07069789,2547.9,2547.8,0.78462]
[1748883866943,0.07069789,2547.9,2547.8,2.08242]
[1748883869237,0.07069789,2547.9,2547.3,1.96193]
[1748883869444,0.78465,2547.8,2547.7,0.78465]
[1748883869645,0.78467,2547.7,2547.6,0.78467]
[1748883870045,0.78468,2547.6,2547.5,2.08079]
[1748883870251,3.2078,2547.7,2547.4,1.96186]
[1748883870448,3.99245,2547.7,2547.6,0.78468]
[1748883871150,1.32579789,2547.9,2547.4,3.25796]
[1748883871151,1.32579789,2547.9,2547.4,1.2961]
[1748883871351,0.78467,2547.7,2547.6,0.78466]
[1748883871552,0.78464,2547.8,2547.7,0.78464]
[1748883871750,3.20104576,2547.9,2547.8,0.78462]
[1748883872052,0.07069789,2547.9,2547.8,0.78462]
[1748883872248,0.07069789,2547.9,2547.8,3.99242]
[1748883872645,0.07069789,2547.9,2547.8,4.61982]
[1748883872846,0.07069789,2547.9,2547.8,5.96422]
[1748883873352,0.07069789,2547.9,2547.8,10.96422]
[1748883875155,3.13034787,2548.3,2548.2,0.7845]
[1748883875449,3.13034787,2548.3,2548.0,1.96139]
[1748883875450,0.59448305,2548.4,2548.3,0.78447]
[1748883876452,4.50599999,2548.4,2548.3,0.78447]
[1748883877048,0.7845,2548.3,2548.2,0.78448]
[1748883877552,0.7845,2548.3,2548.1,0.78449]
[1748883877553,0.7845,2548.2,2548.1,0.78449]
[1748883877752,2.7113,2548.2,2548.1,0.78449]
[1748883877955,0.678,2548.2,2548.1,0.78449]
[1748883878156,3.12707694,2548.3,2548.2,0.7845]
[1748883878356,3.13295999,2548.4,2548.3,0.78447]
[1748883878842,0.78447,2548.3,2548.2,0.78447]
[1748883879046,2.03327,2548.3,2548.2,0.78447]
[1748883879257,5.16038141,2548.3,2548.2,0.78447]
[1748883879452,3.12711141,2548.3,2548.2,0.78447]
[1748883879767,0.91549141,2548.3,2548.2,0.78447]
[1748883879953,0.00588305,2548.4,2548.3,0.78447]
[1748883880844,0.59448305,2548.4,2548.3,0.78447]
[1748883881059,0.59448305,2548.4,2548.3,3.78447]
[1748883881854,3.80228305,2548.4,2548.3,3.78447]
[1748883882252,0.59448305,2548.4,2548.3,3.78447]
[1748883882647,1.37892305,2548.4,2548.3,3.78447]
[1748883882957,0.59448305,2548.4,2548.3,3.78447]
[1748883890152,1.44962094,2548.4,2548.3,3.0]
[1748883890363,4.65742094,2548.4,2548.3,3.0]
[1748883890554,9.91216712,2548.4,2548.3,3.0]
[1748883891355,0.78468,2547.7,2547.6,0.78467]
[1748883891563,0.78472,2547.5,2547.4,0.78473]
[1748883891864,6.33774151,2547.5,2547.0,1.9929]
[1748883892162,6.33799676,2547.2,2547.0,1.9929]
[1748883892351,3.13019676,2547.1,2547.0,2.77777]
[1748883892959,3.91503676,2547.1,2547.0,1.9929]
[1748883893961,3.91503676,2547.1,2547.0,2.77777]
[1748883894851,3.91503676,2547.1,2547.0,1.9929]
[1748883895056,3.91503676,2547.1,2547.0,2.77777]
[1748883895259,0.78484,2547.1,2547.0,2.77777]
[1748883896266,3.99261,2547.2,2547.1,0.78484]
[1748883896757,3.2078,2547.2,2547.1,0.78484]
[1748883897156,3.2078,2547.2,2546.7,3.2078]
[1748883897353,0.78505,2546.4,2545.9,1.16699729]
[1748883897655,3.99285,2546.4,2546.3,4.16833644]
[1748883898858,5.22115,2546.4,2546.3,4.16833644]
[1748883901060,4.4361,2546.4,2546.3,4.16833644]
[1748883901275,5.22115,2546.4,2546.3,4.16833644]
[1748883901565,3.99285,2546.4,2546.3,4.16833644]
[1748883902159,3.2078,2546.4,2546.3,4.95341644]
[1748883902468,3.99285,2546.4,2546.3,4.95341644]
[1748883903262,3.2078,2546.4,2546.3,4.95341644]
[1748883903567,0.00588305,2546.6,2546.5,0.78502]
[1748883904060,0.00588305,2546.6,2546.5,2.04912]
[1748883904460,0.79087305,2546.6,2546.5,1.2641]
[1748883904668,0.79087305,2546.6,2546.5,2.04912]
[1748883904669,0.00588305,2546.6,2546.5,2.04912]
[1748883905459,0.79087305,2546.6,2546.5,2.04912]
[1748883905668,0.00588305,2546.6,2546.5,2.04912]
[1748883906370,0.59488305,2546.6,2546.5,2.04912]
[1748883907565,0.59488305,2546.6,2546.5,5.25692]
[1748883908368,0.59488305,2546.6,2546.5,10.25692]
[1748883908567,1e-08,2546.6,2546.5,10.25692]
[1748883911171,1.96165,2547.7,2546.5,10.25692]
[1748883911172,3.2078,2547.9,2547.3,0.78477]
[1748883911371,3.2078,2547.9,2547.7,0.78462]
[1748883911372,0.78465,2547.8,2547.7,0.78462]
[1748883911566,0.7846,2547.9,2547.8,0.78462]
[1748883911972,1.45776,2548.0,2547.9,0.78459]
[1748883912166,0.6732,2548.0,2547.9,0.78459]
[1748883912467,3.21368305,2548.2,2548.1,0.78453]
[1748883912468,3.99820305,2548.2,2548.1,0.78453]
[1748883912675,0.79040305,2548.2,2548.1,0.78453]
[1748883912866,0.00588305,2548.2,2548.1,0.78453]
[1748883913165,0.79038305,2548.2,2548.1,0.78453]
[1748883913369,0.79038305,2548.2,2548.0,1.2979]
[1748883913370,0.78453,2548.1,2548.0,2.08243]
[1748883914374,0.78453,2548.1,2548.0,1.2979]
[1748883914667,0.78462,2547.8,2547.7,0.00588305]
[1748883914873,3.99241,2547.9,2547.8,0.78462]
[1748883915077,0.6384,2548.0,2547.9,0.78459]
[1748883915266,0.78459,2547.9,2547.8,2.07319]
[1748883916568,1.42297,2548.0,2547.9,0.78459]
[1748883916774,3.21368305,2548.2,2547.9,1.2767]
[1748883916962,0.00588305,2548.2,2548.1,0.78453]
[1748883918072,0.79038305,2548.2,2548.1,0.78453]
[1748883918281,0.78459,2547.9,2547.8,3.2078]
[1748883918573,0.00588305,2548.2,2548.0,0.78453]
[1748883918778,0.00588305,2548.2,2547.8,3.0]
[1748883918779,0.78458,2548.0,2547.9,1.2767]
[1748883919180,0.78458,2548.0,2547.9,2.06129]
[1748883919368,0.78455,2548.1,2548.0,0.78455]
[1748883919873,0.78456,2548.0,2547.9,2.06127]
[1748883920266,0.78456,2548.0,2547.9,1.2767]
[1748883920467,0.78456,2548.0,2547.9,2.06129]
[1748883921171,0.07658094,2548.2,2547.9,1.2767]
[1748883921378,2.21611094,2548.2,2548.1,0.78453]
[1748883921577,0.78456,2548.1,2548.0,0.78455]
[1748883921882,0.78456,2548.0,2547.9,2.06126]
[1748883923081,0.78454,2548.1,2548.0,0.78453]
[1748883923276,0.86110094,2548.2,2548.1,0.78453]
[1748883923578,0.78455,2548.1,2548.0,0.78454]
[1748883924379,0.07658094,2548.2,2548.1,0.78453]
[1748883925266,0.86108094,2548.2,2548.1,0.78453]
[1748883925481,0.07658094,2548.2,2548.1,0.78453]
[1748883925682,0.86108094,2548.2,2548.1,0.78453]
[1748883926179,0.07658094,2548.2,2548.1,0.78453]
[1748883927369,0.07658094,2548.2,2548.1,3.99233]
[1748883927576,2.33344824,2548.6,2548.5,0.78441]
[1748883927879,2.33344824,2549.0,2548.9,0.78428]
[1748883928178,0.78423,2549.1,2549.0,0.78425]
[1748883928376,0.78428,2548.9,2548.8,1.2919]
[1748883929080,1.96073,2548.9,2548.4,1.40102]
[1748883929277,0.78441,2548.5,2548.4,1.9509]
[1748883929488,0.78441,2548.5,2548.4,2.73534]
[1748883929981,5.54124824,2548.8,2548.4,7.11978]
[1748883930176,0.78439,2548.6,2548.5,0.78437]
[1748883930573,0.78441,2548.5,2548.4,1.9509]
[1748883930777,3.23189,2548.7,2548.3,0.78443]
[1748883930778,0.78446,2548.4,2548.3,0.78443]
[1748883931581,0.78443,2548.5,2548.4,0.78441]
[1748883933489,3.11787824,2548.5,2548.4,0.78441]
[1748883933978,3.11787824,2548.5,2548.2,2.11879]
[1748883933979,0.78447,2548.3,2548.2,2.11879]
[1748883934175,0.7845,2548.2,2548.1,0.78451]
[1748883934381,3.11794824,2548.2,2548.1,0.78453]
[1748883934579,1.96135,2548.1,2547.7,0.00588305]
[1748883934780,0.78462,2547.8,2547.7,0.00588305]
[1748883935185,2.71612,2547.8,2547.7,0.00588305]
[1748883935585,6.62835204,2547.8,2547.7,0.00588305]
[1748883936088,1.96175,2547.6,2546.9,3.2078]
[1748883936279,3.12009092,2547.3,2546.9,3.2078]
[1748883936481,2.34016851,2547.1,2547.0,0.78487]
[1748883936686,3.12502851,2547.1,2547.0,0.78487]
[1748883936886,5.46025943,2547.1,2546.6,0.6633]
[1748883937088,3.2078,2546.9,2546.2,1.96275]
[1748883937397,3.12009092,2546.7,2546.3,1.17421949]
[1748883937574,0.78504,2546.5,2546.4,0.78504]
[1748883937783,3.99283,2546.5,2546.3,1.17421949]
[1748883937983,3.12009092,2546.5,2546.4,0.78505]
[1748883938186,3.90511092,2546.5,2546.4,0.78505]
[1748883938388,3.12009092,2546.5,2546.4,0.78505]
[1748883938587,3.12009092,2546.6,2546.5,0.78502]
[1748883938784,3.12009092,2546.6,2546.3,1.17421949]
[1748883938785,3.12009092,2546.6,2546.4,0.78505]
[1748883938991,0.78505,2546.4,2546.3,1.95927949]
[1748883939194,0.78505,2546.4,2546.3,1.17421949]
[1748883939385,3.90514092,2546.4,2546.3,1.17421949]
[1748883939585,10.20934092,2546.4,2546.3,1.17421949]
[1748883939788,7.67535,2546.4,2546.3,0.15081949]
[1748883940091,6.8903,2546.4,2545.3,1.96344]
[1748883940291,3.12040726,2545.8,2545.7,0.78526]
[1748883941189,3.70212814,2546.4,2546.3,0.78508]
[1748883941497,0.5861,2546.4,2546.3,0.78508]
[1748883943698,1e-05,2546.4,2546.3,3.99288]
[1748883944097,1e-05,2546.4,2546.3,6.99288]
[1748883944398,0.78506,2546.4,2546.3,6.2078]
[1748883944601,3.99286,2546.4,2546.3,3.0]
[1748883944803,1.96288,2546.1,2545.6,0.78528]
[1748883945099,1.96271,2546.3,2545.5,0.00588305]
[1748883945100,3.2078,2546.0,2545.5,0.00588305]
[1748883945406,0.7853,2545.6,2545.5,0.00588305]
[1748883945698,0.7853,2545.6,2545.5,0.79119305]
[1748883945999,0.7853,2545.6,2545.5,0.00588305]
[1748883946196,2.1114,2545.6,2545.5,0.00588305]
[1748883947400,0.78539,2545.3,2544.7,5.78661]
[1748883947597,0.78547,2545.1,2544.8,0.07859163]
[1748883947802,0.78543,2545.2,2545.1,0.78544]
[1748883948102,0.78547,2545.1,2544.9,0.78549]
[1748883948295,0.78548,2545.0,2544.9,0.78549]
[1748883948490,0.78547,2545.1,2545.0,0.78547]
[1748883948802,0.78551,2544.9,2544.7,0.78555]
[1748883948992,0.78551,2544.9,2544.3,2.60162]
[1748883948993,3.99326,2545.1,2545.0,0.78548]
[1748883949192,3.2078,2545.1,2544.6,3.2078]
[1748883949392,3.99327,2545.1,2545.0,0.78548]
[1748883949592,0.78549,2545.0,2544.9,0.78549]
[1748883949895,0.78548,2545.0,2544.9,0.78551]
[1748883950202,0.78548,2545.0,2544.4,1.2407]
[1748883950203,0.78553,2544.9,2544.8,0.78552]
[1748883950498,3.2078,2545.1,2544.3,3.2078]
[1748883950687,0.78553,2544.9,2544.8,0.78555]
[1748883950892,1.96372,2545.0,2544.5,0.78563]
[1748883951101,3.2078,2544.8,2544.4,1.2442]
[1748883951301,3.2078,2545.1,2544.5,1.9641]
[1748883951493,3.2078,2545.1,2545.0,0.78548]
[1748883951690,0.07069789,2545.3,2545.2,0.78542]
[1748883951895,0.07069789,2545.3,2545.1,0.78544]
[1748883952091,0.07069789,2545.3,2544.7,1.96395]
[1748883952296,0.7855,2545.0,2544.9,0.78551]
[1748883952502,3.27849789,2545.3,2545.0,0.78547]
[1748883952708,3.27849789,2545.3,2544.6,3.20817]
[1748883952898,0.78548,2545.1,2545.0,0.78547]
[1748883953201,0.78544,2545.2,2545.1,0.78545]
[1748883953389,3.27849789,2545.3,2544.7,1.96392]
[1748883953390,4.06389789,2545.3,2545.2,0.78542]
[1748883953594,3.27849789,2545.3,2545.2,0.78542]
[1748883953997,0.07069789,2545.3,2545.2,0.78542]
[1748883954504,0.07069789,2545.3,2545.2,3.99322]